[Event "15th Arad Open 2022"]
[Site "Arad"]
[Date "2022.08.13"]
[Round "8.4"]
[White "Ardeleanu, Alin"]
[Black "Srbis, Jurica"]
[Result "1/2-1/2"]
[ECO "B51"]
[WhiteElo "2290"]
[BlackElo "2472"]
[Annotator "RC"]
[PlyCount "86"]
[EventDate "2022.08.08"]
[EventType "swiss"]
[EventCountry "ROU"]
[SourceTitle "playchess.com"]
[Source "ChessBase"]
[SourceQuality "1"]
[TimeControl "5400+30"]

1. e4 {[%emt 0:00:11]} c5 {[%emt 0:00:17]} 2. Nf3 {[%emt 0:00:41]} d6 {[%emt 0:00:09]} 3. Bb5+ {[%emt 0:02:05]} Nd7 {[%emt 0:00:08]} 4. d4 {[%emt 0:04:26]} cxd4 {[%emt 0:00:08]} 5. Qxd4 {[%emt 0:00:12]} a6 {[%emt 0:00:08]} 6. Bxd7+ {[%emt 0:01:30]} Bxd7 {[%emt 0:00:08]} 7. O-O {[%emt 0:04:21]} e5 {[%emt 0:00:53]} 8. Qd3 {[%emt 0:00:31]} h6 {[%emt 0:00:09]} 9. c4 {[%emt 0:00:48]} Nf6 {[%emt 0:01:20]} 10. Nc3 {[%emt 0:00:54]} Be7 {[%emt 0:00:30]} 11. a4 {[%emt 0:02:44]} O-O {[%emt 0:00:19]} 12. Rd1 {[%emt 0:01:23]} Qa5 {[%emt 0:03:22]} 13. Bd2 {[%emt 0:01:43]} Qc7 {[%emt 0:00:37]} 14. Be3 {[%emt 0:01:36]} Bg4 {[%emt 0:02:40]} 15. h3 {[%emt 0:04:13]} Bxf3 {[%emt 0:01:27]} 16. gxf3 {[%emt 0:00:02]} Qc8 {[%emt 0:00:20]} 17. Kh2 {[%emt 0:00:26]} Nh5 {[%emt 0:00:14]} 18. Nd5 {[%emt 0:02:24]} Bd8 {[%emt 0:02:36]} 19. Rg1 {[%emt 0:04:36]} Qe6 {[%emt 0:03:19]} 20. Rg2 {[%emt 0:04:01]} Kh7 {[%emt 0:05:15]} 21. Rag1 {[%emt 0:00:47]} Rc8 {[%emt 0:01:17]} 22. b3 {[%emt 0:12:55]} g5 {[%emt 0:05:52]} 23. Rd1 {[%emt 0:03:54]} f5 {[%emt 0:07:00]} 24. h4 {[%emt 0:16:12]} gxh4 {[%emt 0:03:07]} 25. Rdg1 {[%emt 0:10:04]} f4 {[%emt 0:01:31]} 26. Rg6 {[%emt 0:05:03]} Qxg6 {[%emt 0:16:32]} 27. Rxg6 {[%emt 0:00:55]} Kxg6 {[%emt 0:00:05]} 28. Bd2 {[%emt 0:02:18]} Kh7 {[%emt 0:08:31]} 29. Qf1 {[%emt 0:02:38]} Ng7 {[%emt 0:06:07]} 30. Qh3 {[%emt 0:00:21]} Bg5 {[%emt 0:00:04]} 31. Bb4 {[%emt 0:03:17]} Rcd8 {[%emt 0:00:44]} 32. Ba5 {[%emt 0:00:14]} Rde8 {[%emt 0:00:08]} 33. Qd7 {[%emt 0:00:55]} Kg8 {[%emt 0:00:56]} 34. Bb6 {[%emt 0:05:03]} Rf7 {[%emt 0:00:58]} 35. Qxd6 {[%emt 0:00:08]} Re6 {[%emt 0:00:56]} 36. Qb8+ {[%emt 0:00:28]} Kh7 {[%emt 0:01:23]} 37. a5 {[%emt 0:03:32]} Re8 {[%emt 0:07:44]} 38. Qd6 {[%emt 0:00:02]} Re6 {[%emt 0:01:06]} 39. Qb8 {[%emt 0:01:18]} Re8 {[%emt 0:00:14]} 40. Qd6 {[%emt 0:00:00]} Re6 {[%emt 0:00:00]} 41. Qb4 {[%emt 0:02:09]} Rc6 {[%emt 0:22:46]} 42. Qc3 {[%emt 0:00:30]} Ne8 {[%emt 0:00:30]} 43. b4 {[%emt 0:00:30]} Re6 1/2-1/2

[Event "15th Arad Open 2022"]
[Site "Arad"]
[Date "2022.08.13"]
[Round "8.5"]
[White "Paraschiv, Paul-Alexandru"]
[Black "Coicev, Matei-Andrei"]
[Result "1/2-1/2"]
[ECO "A01"]
[WhiteElo "2181"]
[BlackElo "2087"]
[Annotator "TA"]
[PlyCount "72"]
[EventDate "2022.08.08"]
[EventType "swiss"]
[EventCountry "ROU"]
[SourceTitle "playchess.com"]
[Source "ChessBase"]
[SourceQuality "1"]
[TimeControl "5400+30"]

{[%evp 9,72,-13,0,-31,-27,-38,-42,-51,0,0,0,0,0,0,0,-4,15,-17,0,-21,0,7,30,20,48,18,80,0,55,54,39,14,13,-8,18,1,32,0,39,15,30,17,25,0,0,-47,0,0,3,0,2,-57,-22,-29,125,125,137,-83,-79,-349,0,0,0,0,0]} 1. e4 {[%emt 0:02:33]} c5 {[%emt 0:00:44]} 2. b3 {[%emt 0:02:06]} g6 {[%emt 0:01:51]} 3. Bb2 {[%emt 0:01:47]} Nf6 {[%emt 0:00:41]} 4. g3 {[%emt 0:01:35]} d6 {[%emt 0:04:58]} 5. Bg2 {[%emt 0:02:19]} Bg7 {[%emt 0:00:56]} 6. f4 {[%emt 0:01:18] A01: Nimzowitsch-Larsen Opening.} Nc6 {[%emt 0:02:25]} 7. Nf3 {[%emt 0:02:04]} O-O {[%emt 0:01:27]} 8. d3 {[%emt 0:00:07] Black is slightly better.} Ng4 {[%emt 0:04:54]} (8... e5 $15) 9. Bxg7 $11 {[%emt 0:01:09]} Ne3 {[%emt 0:05:25]} 10. Qd2 {[%emt 0:03:03]} Nxg2+ {[%emt 0:00:59]} 11. Qxg2 {[%emt 0:04:09]} Kxg7 {[%emt 0:00:29]} 12. O-O {[%emt 0:01:29] [#]} e6 $146 {[%emt 0:14:45]} ({Predecessor:} 12... f5 13. Nbd2 d5 14. exd5 Qxd5 15. Rae1 e6 16. Ng5 h6 17. Qxd5 exd5 18. Ne6+ Bxe6 19. Rxe6 {0-1 (25) Rossello Padron,C (1954)-Rodriguez Melian,J (2119) Las Palmas 2012}) 13. Nbd2 {[%emt 0:02:24]} d5 {[%emt 0:04:28]} 14. e5 {[%emt 0:06:04]} Nb4 {[%emt 0:03:33]} 15. Rfc1 {[%emt 0:04:35]} Bd7 {[%emt 0:02:57]} 16. a3 {[%emt 0:04:20]} Na6 {[%emt 0:01:24]} 17. g4 {[%emt 0:00:40]} f5 {[%emt 0:08:57]} (17... Rh8 $11 {remains equal.}) 18. Rf1 {[%emt 0:02:00]} (18. exf6+ $1 $16 Qxf6 19. Ne5) 18... d4 {[%emt 0:05:22]} (18... Nc7 $11) 19. gxf5 $14 {[%emt 0:03:15]} exf5 {[%emt 0:01:33]} 20. Nc4 {[%emt 0:01:23]} (20. h4 $5 {[%cal Rh4h5]}) 20... Bc6 {[%emt 0:01:13]} 21. Qh3 {[%emt 0:00:31] aiming for Ng5.} Qd5 {[%emt 0:01:41]} 22. Rae1 {[%emt 0:02:05] Strongly threatening e6.} Nc7 {[%emt 0:02:16]} 23. Qg3 {[%emt 0:14:27]} Ne6 {[%emt 0:01:21]} 24. Nd6 {[%emt 0:00:23]} Kh8 {[%emt 0:02:47]} 25. h4 {[%emt 0:03:39][%cal Oh4h5]} Ng7 {[%emt 0:01:04]} 26. a4 {[%emt 0:01:07]} Nh5 {[%emt 0:00:55]} 27. Qh2 {[%emt 0:00:07]} (27. Qg5 $11) 27... Nf6 {[%emt 0:03:19]} 28. Qd2 $11 {[%emt 0:06:51]} Ng4 {[%emt 0:01:24]} 29. c4 {[%emt 0:00:14]} Qe6 {[%emt 0:00:48]} 30. Kg2 {[%emt 0:02:28]} ({White should try} 30. b4 $1 $11) 30... Qe7 {[%emt 0:01:45] And now ...Qxh4 would win.} 31. Kg3 {[%emt 0:00:05]} a6 $2 {[%emt 0:02:49] [#]} (31... b6 $11) 32. Qa5 $1 $16 {[%emt 0:02:40]} Nf6 {[%emt 0:07:27]} 33. Kh3 $2 {[%emt 0:07:58] Active counter play!} (33. exf6 $16 {is necessary to keep the advantage.} Qxd6 34. Ng5 Rxf6 35. Re6 Qxe6 36. Nxe6 Rxe6 37. Qxc5) 33... Nh5 $17 {[%emt 0:00:52]} 34. Ng1 $2 {[%emt 0:00:51][%mdl 8192] [#]} (34. Qd2 $17 {was worth a try.}) 34... b6 $2 {[%emt 0:05:17]} ({Black should play} 34... Nxf4+ $1 $19 {[%mdl 512]} 35. Rxf4 g5) 35. Qxb6 $11 {[%emt 0:01:00]} Bg2+ {[%emt 0:01:44]} 36. Kxg2 {[%emt 0:00:57]} Qxh4 {[%emt 0:00:06] Weighted Error Value: White=0.38/Black=0.41} 1/2-1/2

[Event "15th Arad Open 2022"]
[Site "Arad"]
[Date "2022.08.13"]
[Round "8.6"]
[White "Magold, Filip"]
[Black "Ambru, Dan-Calin"]
[Result "1/2-1/2"]
[ECO "B50"]
[WhiteElo "2247"]
[BlackElo "2001"]
[Annotator "TA"]
[PlyCount "67"]
[EventDate "2022.08.08"]
[EventType "swiss"]
[EventCountry "ROU"]
[SourceTitle "playchess.com"]
[Source "ChessBase"]
[SourceQuality "1"]
[TimeControl "5400+30"]

{[%evp 11,67,0,0,0,7,0,0,0,0,-21,10,0,0,-10,-7,-43,-25,-79,-79,-82,-78,-74,-82,-82,-74,-73,-69,-46,-52,-57,-60,-66,-19,-15,-4,-14,0,0,0,0,0,0,0,-4,0,-12,0,-127,0,0,0,-3,0,0,0,0,0,0]} 1. e4 {[%emt 0:00:03]} c5 {[%emt 0:07:08]} 2. Nf3 {[%emt 0:00:09]} Nc6 {[%emt 0:00:06]} 3. Bc4 {[%emt 0:00:08]} d6 {[%emt 0:03:19]} 4. d3 {[%emt 0:01:13]} g6 {[%emt 0:01:03]} 5. c3 {[%emt 0:00:07]} Bg7 {[%emt 0:03:36]} 6. O-O {[%emt 0:00:36]} Nf6 {[%emt 0:00:29][%cal Bg8f6,Bf6d5,Bd5c7,Bc7e6][%mdl 32]} 7. Re1 {[%emt 0:03:38] B50: Sicilian: 2...d6, Miscellaneous.} O-O {[%emt 0:00:39]} 8. h3 {[%emt 0:06:35]} d5 {[%emt 0:17:06] The modern move.} 9. exd5 {[%emt 0:01:06]} Nxd5 {[%emt 0:00:04]} 10. Nbd2 {[%emt 0:07:27] [#]} h6 $146 {[%emt 0:11:56]} ({Predecessor:} 10... b6 11. Bb3 Nf4 12. d4 cxd4 13. Ne4 Ne6 14. Bd2 Na5 15. Bxe6 Bxe6 16. Nxd4 Bd5 {1-0 (60) Anand,V (2751)-Wojtaszek,R (2696) Warsaw 2022}) 11. Nb3 {[%emt 0:15:54]} b6 {[%emt 0:09:31]} 12. a4 {[%emt 0:00:41]} e5 {[%emt 0:10:11]} 13. Qc2 {[%emt 0:16:59]} Bf5 {[%emt 0:07:08]} 14. a5 {[%emt 0:02:10] [#]} (14. Bb5 $11 Qc7 15. a5) 14... Nc7 $1 $17 {[%emt 0:07:13]} 15. axb6 {[%emt 0:14:49]} axb6 {[%emt 0:00:05] Threatens to win with ...Rxa1.} 16. Rxa8 {[%emt 0:00:02]} Qxa8 {[%emt 0:00:06]} 17. g4 {[%emt 0:04:07]} Be6 {[%emt 0:04:13]} 18. Nbd2 {[%emt 0:00:29]} b5 {[%emt 0:03:04]} 19. Bxe6 {[%emt 0:03:55]} Nxe6 {[%emt 0:00:34]} 20. Ne4 {[%emt 0:00:28]} Ne7 {[%emt 0:03:19][%cal Bc6e7,Be7d5,Bd5f6][%mdl 32]} 21. g5 {[%emt 0:06:23]} hxg5 {[%emt 0:01:16]} (21... h5 $15) 22. Nfxg5 $11 {[%emt 0:00:22]} Qc6 {[%emt 0:03:18]} 23. Qe2 {[%emt 0:05:18]} Nd5 {[%emt 0:01:40]} 24. Nxe6 {[%emt 0:01:39]} Qxe6 {[%emt 0:00:06]} 25. Qf3 {[%emt 0:02:33]} Rc8 {[%emt 0:01:57]} 26. h4 {[%emt 0:01:54]} Nf6 {[%emt 0:00:34]} 27. Ng3 {[%emt 0:00:56]} Qd5 {[%emt 0:00:50]} 28. Qe2 {[%emt 0:01:50]} Rd8 {[%emt 0:00:15]} 29. Qxe5 {[%emt 0:00:29]} (29. Bg5 $11 {keeps the balance.}) 29... Qxe5 {[%emt 0:01:27]} ({But not} 29... Qxd3 30. Qxc5 Nd7 31. Qe3 Qxe3 32. Bxe3 $14) (29... Re8 $17 30. Qxe8+ Nxe8 31. Rxe8+ Kh7) 30. Rxe5 {[%emt 0:00:01] The position is equal.} Rxd3 {[%emt 0:00:08] [#] And now ...Rd1+ would win.} 31. Be3 {[%emt 0:00:55]} Rd1+ {[%emt 0:01:12]} 32. Kg2 {[%emt 0:00:14]} Rb1 {[%emt 0:00:05]} 33. b4 {[%emt 0:01:19]} cxb4 {[%emt 0:00:34]} 34. Rxb5 {[%emt 0:00:25] Weighted Error Value: White=0.16 (very precise) /Black=0.13 (very precise)} 1/2-1/2

[Event "15th Arad Open 2022"]
[Site "Arad"]
[Date "2022.08.13"]
[Round "8.7"]
[White "Tampea, Radu"]
[Black "Ionescu, Irina"]
[Result "1/2-1/2"]
[ECO "B07"]
[WhiteElo "2093"]
[BlackElo "2125"]
[Annotator "NA RC"]
[PlyCount "48"]
[EventDate "2022.08.08"]
[EventType "swiss"]
[EventCountry "ROU"]
[SourceTitle "playchess.com"]
[Source "ChessBase"]
[SourceQuality "1"]
[TimeControl "5400+30"]

1. d4 {[%emt 0:02:04]} Nf6 {[%emt 0:00:09]} 2. Bf4 {[%emt 0:00:28]} d6 {[%emt 0:01:14]} 3. Nc3 {[%emt 0:00:46]} g6 {[%emt 0:00:42]} 4. e4 {[%emt 0:00:54]} Bg7 {[%emt 0:00:26]} 5. Qd2 {[%emt 0:00:54]} c6 {[%emt 0:01:08]} 6. f3 {[%emt 0:01:34]} b5 {[%emt 0:05:45]} 7. g4 {[%emt 0:02:03]} Bb7 {[%emt 0:02:13]} 8. O-O-O {[%emt 0:03:52]} Nbd7 {[%emt 0:12:18]} 9. Bh6 {[%emt 0:14:31]} Bxh6 {[%emt 0:01:06]} 10. Qxh6 {[%emt 0:00:06]} b4 {[%emt 0:01:48]} 11. Nce2 {[%emt 0:01:45]} Qa5 {[%emt 0:01:20]} 12. Kb1 {[%emt 0:00:32]} O-O-O {[%emt 0:01:30]} 13. Qd2 {[%emt 0:06:42]} Qb6 {[%emt 0:03:11]} 14. g5 {[%emt 0:02:57]} Nh5 {[%emt 0:01:45]} 15. Ng3 {[%emt 0:00:11]} Ng7 {[%emt 0:00:47]} 16. h4 {[%emt 0:02:56]} e5 {[%emt 0:01:52]} 17. dxe5 {[%emt 0:04:32]} dxe5 {[%emt 0:02:28]} 18. Bh3 {[%emt 0:00:24]} Ne6 {[%emt 0:00:19]} 19. Bxe6 {[%emt 0:01:22]} fxe6 {[%emt 0:00:05]} 20. N1e2 {[%emt 0:00:50]} Nc5 {[%emt 0:06:20]} 21. Qe3 {[%emt 0:03:18]} Na4 {[%emt 0:00:22]} 22. Qb3 {[%emt 0:01:13]} Nc5 {[%emt 0:00:08]} 23. Qe3 {[%emt 0:00:25]} Na4 {[%emt 0:01:38]} 24. Qb3 {[%emt 0:26:38]} Nc5 {[%emt 0:00:07]} 1/2-1/2

[Event "15th Arad Open 2022"]
[Site "Arad"]
[Date "2022.08.13"]
[Round "8.8"]
[White "Ghita, Vlad-Bogdan"]
[Black "Veneteanu, Mihai"]
[Result "0-1"]
[ECO "B88"]
[WhiteElo "1944"]
[BlackElo "2025"]
[Annotator "NA RC"]
[PlyCount "86"]
[EventDate "2022.08.08"]
[EventType "swiss"]
[EventCountry "ROU"]
[SourceTitle "playchess.com"]
[Source "ChessBase"]
[SourceQuality "1"]
[TimeControl "5400+30"]

1. e4 {[%emt 0:00:03]} c5 {[%emt 0:00:05]} 2. Nf3 {[%emt 0:00:04]} Nc6 {[%emt 0:00:03]} 3. d4 {[%emt 0:00:06]} cxd4 {[%emt 0:00:10]} 4. Nxd4 {[%emt 0:00:05]} Nf6 {[%emt 0:00:04]} 5. Nc3 {[%emt 0:00:06]} d6 {[%emt 0:00:03]} 6. Bc4 {[%emt 0:00:43]} e6 {[%emt 0:00:09]} 7. Be3 {[%emt 0:00:15]} a6 {[%emt 0:00:47]} 8. Bb3 {[%emt 0:00:12]} Be7 {[%emt 0:02:57]} 9. f4 {[%emt 0:00:13]} Qc7 {[%emt 0:02:48]} 10. O-O {[%emt 0:03:44]} Na5 {[%emt 0:00:56]} 11. g4 {[%emt 0:02:54]} Nc4 {[%emt 0:32:10]} 12. Bxc4 {[%emt 0:00:40]} Qxc4 {[%emt 0:00:02]} 13. g5 {[%emt 0:02:01]} Nd7 {[%emt 0:01:43]} 14. Qf3 {[%emt 0:01:45]} b5 {[%emt 0:19:01]} 15. f5 {[%emt 0:02:40]} Ne5 {[%emt 0:00:17]} 16. Qg3 {[%emt 0:00:08]} Bb7 {[%emt 0:07:42]} 17. Rad1 {[%emt 0:01:52]} O-O-O {[%emt 0:12:11]} 18. Qh3 {[%emt 0:00:20]} Nc6 {[%emt 0:07:49]} 19. fxe6 {[%emt 0:00:34]} Nxd4 {[%emt 0:00:03]} 20. exf7+ {[%emt 0:00:10]} Qe6 {[%emt 0:00:04]} 21. Qg3 {[%emt 0:11:33]} Nc6 {[%emt 0:00:01]} 22. a4 {[%emt 0:00:43]} b4 {[%emt 0:05:30]} 23. Nd5 {[%emt 0:00:27]} Ne5 {[%emt 0:04:30]} 24. Nxb4 {[%emt 0:01:36]} Rdf8 {[%emt 0:01:09]} 25. Rd5 {[%emt 0:01:25]} Rxf7 {[%emt 0:00:18]} 26. Rxf7 {[%emt 0:00:14]} Nxf7 {[%emt 0:00:32]} 27. Bb6 {[%emt 0:06:09]} Qxe4 {[%emt 0:01:38]} 28. Qc3+ {[%emt 0:01:22]} Kd7 {[%emt 0:00:21]} 29. Qc7+ {[%emt 0:01:52]} Ke6 {[%emt 0:00:17]} 30. Qxb7 {[%emt 0:00:26]} Qxb4 {[%emt 0:00:26]} 31. Rd4 {[%emt 0:00:46]} Qe1+ {[%emt 0:00:01]} 32. Kg2 {[%emt 0:00:09]} Qe2+ {[%emt 0:00:17]} 33. Kg1 {[%emt 0:00:22]} Qe1+ {[%emt 0:01:36]} 34. Kg2 {[%emt 0:00:01]} Qe2+ {[%emt 0:01:05]} 35. Kg1 {[%emt 0:00:06]} Ne5 {[%emt 0:00:12]} 36. Rf4 {[%emt 0:04:10]} Bxg5 {[%emt 0:00:21]} 37. Rf2 {[%emt 0:00:29]} Qg4+ {[%emt 0:00:24]} 38. Kh1 {[%emt 0:00:26]} Qd1+ {[%emt 0:00:12]} 39. Kg2 {[%emt 0:00:07]} Qd5+ {[%emt 0:00:25]} 40. Qxd5+ {[%emt 0:00:00]} Kxd5 {[%emt 0:00:00]} 41. b3 {[%emt 0:00:00]} Rb8 {[%emt 0:00:00]} 42. a5 {[%emt 0:00:00]} Bd8 {[%emt 0:00:00]} 43. c4+ {[%emt 0:00:00]} Kc6 {[%emt 0:03:41]} 0-1

[Event "15th Arad Open 2022"]
[Site "Arad"]
[Date "2022.08.13"]
[Round "8.9"]
[White "Magold, Victor"]
[Black "Butolo, Alexandru-Mircea"]
[Result "1-0"]
[ECO "E11"]
[WhiteElo "2074"]
[BlackElo "1863"]
[Annotator "NA RC"]
[PlyCount "103"]
[EventDate "2022.08.08"]
[EventType "swiss"]
[EventCountry "ROU"]
[SourceTitle "playchess.com"]
[Source "ChessBase"]
[SourceQuality "1"]
[TimeControl "5400+30"]

1. d4 {[%emt 0:00:04]} Nf6 {[%emt 0:00:05]} 2. Nf3 {[%emt 0:00:04]} e6 {[%emt 0:00:04]} 3. c4 {[%emt 0:00:07]} Bb4+ {[%emt 0:00:04]} 4. Bd2 {[%emt 0:00:05]} Bxd2+ {[%emt 0:00:04]} 5. Qxd2 {[%emt 0:00:04]} O-O {[%emt 0:00:20]} 6. g3 {[%emt 0:00:16]} d5 {[%emt 0:00:32]} 7. Bg2 {[%emt 0:00:24]} b6 {[%emt 0:00:48]} 8. Ne5 {[%emt 0:01:13]} Bb7 {[%emt 0:03:16]} 9. Nc3 {[%emt 0:07:24]} Nbd7 {[%emt 0:02:36]} 10. Nxd7 {[%emt 0:02:23]} Qxd7 {[%emt 0:01:11]} 11. O-O {[%emt 0:00:11]} Rad8 {[%emt 0:00:53]} 12. Rfd1 {[%emt 0:02:49]} Qc8 {[%emt 0:03:12]} 13. cxd5 {[%emt 0:00:09]} exd5 {[%emt 0:00:18]} 14. Rac1 {[%emt 0:00:12]} a6 {[%emt 0:02:21]} 15. a4 {[%emt 0:06:30]} c5 {[%emt 0:03:40]} 16. a5 {[%emt 0:05:39]} Ne4 {[%emt 0:07:14]} 17. Nxe4 {[%emt 0:00:07]} dxe4 {[%emt 0:00:04]} 18. axb6 {[%emt 0:00:30]} Rxd4 {[%emt 0:01:52]} 19. Qxd4 {[%emt 0:01:46]} cxd4 {[%emt 0:00:04]} 20. Rxc8 {[%emt 0:00:06]} Rxc8 {[%emt 0:00:52]} 21. Rxd4 {[%emt 0:00:25]} f5 {[%emt 0:00:42]} 22. Bf1 {[%emt 0:06:40]} Kf8 {[%emt 0:04:48]} 23. Rd7 {[%emt 0:01:50]} Rb8 {[%emt 0:04:47]} 24. e3 {[%emt 0:03:24]} Bc6 {[%emt 0:00:16]} 25. Ra7 {[%emt 0:00:04]} Bb5 {[%emt 0:00:47]} 26. Bh3 {[%emt 0:12:01]} Rxb6 {[%emt 0:12:46]} 27. Bxf5 {[%emt 0:02:25]} Bc6 {[%emt 0:00:24]} 28. Rc7 {[%emt 0:01:51]} h6 {[%emt 0:07:13]} 29. Bg6 {[%emt 0:29:01]} Bb7 {[%emt 0:04:21]} 30. Rf7+ {[%emt 0:00:12]} Kg8 {[%emt 0:00:05]} 31. Re7 {[%emt 0:00:18]} Rxg6 {[%emt 0:00:05]} 32. Rxb7 {[%emt 0:00:02]} Re6 {[%emt 0:00:14]} 33. Kg2 {[%emt 0:03:08]} Kh7 {[%emt 0:00:21]} 34. g4 {[%emt 0:00:16]} Kg6 {[%emt 0:01:04]} 35. h4 {[%emt 0:02:29]} Kf6 {[%emt 0:01:06]} 36. h5 {[%emt 0:00:57]} g6 {[%emt 0:01:47]} 37. Rh7 {[%emt 0:00:23]} Kg5 {[%emt 0:00:13]} 38. Rg7 {[%emt 0:00:09]} Kxg4 {[%emt 0:01:08]} 39. Rxg6+ {[%emt 0:00:07]} Kf5 {[%emt 0:00:12]} 40. Rxe6 {[%emt 0:00:00]} Kxe6 {[%emt 0:00:00]} 41. Kg3 {[%emt 0:00:00]} Kf5 {[%emt 0:00:00]} 42. Kh4 {[%emt 0:00:00]} a5 {[%emt 0:00:00]} 43. b3 {[%emt 0:00:00]} Kf6 {[%emt 0:00:00]} 44. Kg4 {[%emt 0:00:00]} Ke5 {[%emt 0:00:00]} 45. Kg3 {[%emt 0:00:00]} Kf5 {[%emt 0:00:00]} 46. f4 {[%emt 0:00:00]} exf3 {[%emt 0:00:00]} 47. Kxf3 {[%emt 0:00:00]} Kg5 {[%emt 0:00:00]} 48. Ke4 {[%emt 0:00:00]} Kxh5 {[%emt 0:00:00]} 49. Kf5 {[%emt 0:00:00]} Kh4 {[%emt 0:00:00]} 50. e4 {[%emt 0:00:00]} a4 {[%emt 0:00:00]} 51. bxa4 {[%emt 0:00:00]} h5 {[%emt 0:00:00]} 52. e5 {[%emt 0:00:00]} 1-0

[Event "15th Arad Open 2022"]
[Site "Arad"]
[Date "2022.08.13"]
[Round "8.10"]
[White "Manolache, Marius"]
[Black "Kazarian, Anna-Maja"]
[Result "1-0"]
[ECO "A40"]
[WhiteElo "2469"]
[BlackElo "2139"]
[Annotator "TA"]
[PlyCount "51"]
[EventDate "2022.08.08"]
[EventType "swiss"]
[EventCountry "ROU"]
[SourceTitle "playchess.com"]
[Source "ChessBase"]
[SourceQuality "1"]
[TimeControl "5400+30"]

{[%evp 9,51,106,106,115,134,92,157,181,166,164,160,170,158,141,236,123,271,271,396,372,366,364,441,435,433,439,427,424,425,405,592,543,1729,1657,29991,29992,29992,29993,29993,29994,29994,29994,29995,29996]} 1. d4 {[%emt 0:00:06]} e6 {[%emt 0:00:06]} 2. c4 {[%emt 0:00:25]} b6 {[%emt 0:00:05]} 3. e4 {[%emt 0:01:43]} Bb7 {[%emt 0:01:24]} 4. Bd3 {[%emt 0:00:25]} f5 {[%emt 0:01:08]} 5. exf5 {[%emt 0:03:01]} Bb4+ {[%emt 0:05:41]} 6. Kf1 $1 {[%emt 0:00:26][%cal Oc4c5] A40: Unusual replies to 1 d4.} exf5 {[%emt 0:01:04]} 7. Nf3 {[%emt 0:08:58] [#]} Ne7 $146 {[%emt 0:29:58] [#]} (7... Nf6 $142) ({Predecessor:} 7... g6 8. Be2 Nf6 9. c5 bxc5 10. a3 Ba5 11. dxc5 c6 12. Bc4 Qe7 13. b4 Bc7 {1-0 (20) Filatov,D (2287)-Potapov,A (2118) Dagomys 2004}) 8. a3 $1 $16 {[%emt 0:08:25] White is clearly better.} Bd6 {[%emt 0:00:31]} 9. Nc3 {[%emt 0:10:52]} Bxf3 {[%emt 0:33:21]} 10. Qxf3 {[%emt 0:00:10]} Nbc6 {[%emt 0:00:02]} 11. Ne2 {[%emt 0:15:33] Threatens to win with b4.} (11. Bxf5 $2 O-O 12. Bg5 (12. Bxh7+ $2 Kxh7 13. Qd3+ Kg8 $19) 12... Rxf5 $19) 11... O-O {[%emt 0:02:29] [#]} (11... a5 $16 {was called for.} 12. g3 (12. Bxf5 O-O $15) 12... O-O) 12. h4 {[%emt 0:00:58]} ({White must play} 12. b4 $1 $18) 12... Ng6 {[%emt 0:13:06]} (12... a5 $16) 13. h5 $18 {[%emt 0:01:09]} ({Worse is} 13. Bxf5 Nge7 14. g4 Nxf5 15. gxf5 Qf6 $15) 13... Nh4 {[%emt 0:00:05]} (13... Nh8 $142 14. Qd5+ (14. Bxf5 Ne7 $14) 14... Rf7) 14. Qh3 {[%emt 0:01:27]} Be7 {[%emt 0:00:21]} 15. Bf4 {[%emt 0:01:26]} Rf7 {[%emt 0:03:14]} 16. Bg3 {[%emt 0:11:16]} g5 {[%emt 0:00:54]} 17. hxg6 {[%emt 0:00:51]} Nxg6 {[%emt 0:00:15]} 18. Bxf5 {[%emt 0:00:19][%cal Bd3f5,Bf5e4,Be4d5][%mdl 32]} Bf6 {[%emt 0:00:36]} 19. Be4 {[%emt 0:10:19] Hoping for Bd5. A strong pair of Bishops.} Rg7 {[%emt 0:03:37]} (19... Qe7 {was worth a try.}) 20. Nf4 {[%emt 0:01:38]} Bxd4 {[%emt 0:01:11]} 21. Nxg6 {[%emt 0:02:16] Bd5+ would kill now.} hxg6 {[%emt 0:00:03]} 22. Bd5+ {[%emt 0:00:50] White mates.} Kf8 {[%emt 0:00:05]} 23. Qh8+ {[%emt 0:00:33]} Ke7 {[%emt 0:00:04]} 24. Re1+ {[%emt 0:00:09]} Kf6 {[%emt 0:00:17]} 25. Bh4+ {[%emt 0:00:31]} g5 {[%emt 0:00:31] [#]} 26. Bxg5+ $1 {[%emt 0:01:01][%mdl 512] Black did not feel at home in the position after the opening.  Weighted Error Value: White=0.12 (very precise) /Black=0.86} 1-0